[Event "6th Uppsala Young Champions 2019"]
[Site "Uppsala"]
[Date "2019.10.29"]
[Round "7.8"]
[White "Vitenberg, Noam Aviv"]
[Black "Wernberg, Hugo"]
[Result "1-0"]
[ECO "D36"]
[WhiteElo "2223"]
[BlackElo "2006"]
[Annotator "ChessBase"]
[PlyCount "105"]
[EventDate "2019.10.25"]
[EventType "swiss"]
[EventCountry "SWE"]
[SourceTitle "playchess.com"]
[Source "ChessBase"]
[SourceQuality "1"]
[TimeControl "5400+30"]

1. d4 {[%emt 0:02:39]} d5 {[%emt 0:00:00]} 2. c4 {[%emt 0:00:05]} c6 {[%emt 0:00:00]} 3. Nf3 {[%emt 0:00:05]} Nf6 {[%emt 0:00:00]} 4. Nc3 {[%emt 0:00:07]} e6 {[%emt 0:00:00]} 5. Bg5 {[%emt 0:00:09]} h6 {[%emt 0:00:03]} 6. Bh4 {[%emt 0:00:13]} Nbd7 {[%emt 0:00:17]} 7. cxd5 {[%emt 0:00:11]} exd5 {[%emt 0:00:10]} 8. Qc2 {[%emt 0:00:10]} Be7 {[%emt 0:01:08]} 9. e3 {[%emt 0:00:46]} O-O {[%emt 0:01:25]} 10. Bd3 {[%emt 0:00:20]} Re8 {[%emt 0:04:37]} 11. O-O {[%emt 0:03:16]} Ne4 {[%emt 0:04:45]} 12. Bxe7 {[%emt 0:04:45]} Qxe7 {[%emt 0:00:29]} 13. b4 {[%emt 0:00:34]} Ndf6 {[%emt 0:12:07]} 14. b5 {[%emt 0:08:42]} c5 {[%emt 0:03:17]} 15. dxc5 {[%emt 0:01:25]} Nxc5 {[%emt 0:00:13]} 16. Rac1 {[%emt 0:01:23]} Nxd3 {[%emt 0:01:30]} 17. Qxd3 {[%emt 0:00:07]} Bg4 {[%emt 0:02:14]} 18. Nxd5 {[%emt 0:11:15]} Nxd5 {[%emt 0:00:15]} 19. Qxd5 {[%emt 0:00:05]} Rad8 {[%emt 0:01:11]} 20. Qc5 {[%emt 0:07:35]} Qf6 {[%emt 0:24:26]} 21. Nd4 {[%emt 0:02:26]} Re5 {[%emt 0:04:14]} 22. Qxa7 {[%emt 0:11:17]} Rg5 {[%emt 0:13:23]} 23. f4 {[%emt 0:13:16]} Rh5 {[%emt 0:01:16]} 24. g3 {[%emt 0:01:00]} Rd7 {[%emt 0:10:03]} 25. Rf2 {[%emt 0:03:50]} Qe7 {[%emt 0:01:49]} 26. Re1 {[%emt 0:07:20]} Qb4 {[%emt 0:03:29]} 27. Rc1 {[%emt 0:03:22]} Qe7 {[%emt 0:01:25]} 28. Rc3 {[%emt 0:02:42]} Rhd5 {[%emt 0:02:27]} 29. Qa3 {[%emt 0:04:58]} Qe4 {[%emt 0:02:40]} 30. Qc1 {[%emt 0:01:46]} Bh3 {[%emt 0:01:09]} 31. a4 {[%emt 0:01:44]} Re7 {[%emt 0:01:04]} 32. Rd2 {[%emt 0:01:25]} g5 {[%emt 0:02:07]} 33. Qc2 {[%emt 0:02:56]} gxf4 {[%emt 0:01:37]} 34. Qxe4 {[%emt 0:00:39]} Rxe4 {[%emt 0:00:02]} 35. gxf4 {[%emt 0:00:07]} Rd6 {[%emt 0:01:01]} 36. Kf2 {[%emt 0:01:26]} Rg6 {[%emt 0:01:02]} 37. Kf3 {[%emt 0:03:02]} Re8 {[%emt 0:00:24]} 38. Rc1 {[%emt 0:01:03]} Ra8 {[%emt 0:01:07]} 39. Ra2 {[%emt 0:00:26]} Bg4+ {[%emt 0:00:13]} 40. Kf2 {[%emt 0:00:24]} Kh8 {[%emt 0:00:15]} 41. Rg1 {[%emt 0:00:38]} h5 {[%emt 0:00:21]} 42. Raa1 {[%emt 0:00:40]} Ra5 {[%emt 0:00:39]} 43. Rg3 {[%emt 0:00:17]} Rd6 {[%emt 0:00:55]} 44. h3 {[%emt 0:00:28]} Bd7 {[%emt 0:00:12]} 45. Rg5 {[%emt 0:00:10]} f6 {[%emt 0:00:56]} 46. Rxh5+ {[%emt 0:00:11]} Kg8 {[%emt 0:00:15]} 47. Rg1+ {[%emt 0:00:53]} Kf8 {[%emt 0:00:20]} 48. Rh8+ {[%emt 0:00:13]} Kf7 {[%emt 0:00:10]} 49. Rh7+ {[%emt 0:00:17]} Kf8 {[%emt 0:00:12]} 50. Rgg7 {[%emt 0:00:34]} Be6 {[%emt 0:01:13]} 51. Nxe6+ {[%emt 0:00:27]} Rxe6 {[%emt 0:00:10]} 52. Rxb7 {[%emt 0:00:07]} Kg8 {[%emt 0:00:14]} 53. Ra7 {[%emt 0:00:19]} 1-0

[Event "6th Uppsala Young Champions 2019"]
[Site "Uppsala"]
[Date "2019.10.29"]
[Round "7.9"]
[White "Apol, Luitjen Akselsson"]
[Black "Kristensen, Bjarke Hautop"]
[Result "1/2-1/2"]
[ECO "B48"]
[WhiteElo "2129"]
[BlackElo "2223"]
[Annotator "ChessBase"]
[PlyCount "98"]
[EventDate "2019.10.25"]
[EventType "swiss"]
[EventCountry "SWE"]
[SourceTitle "playchess.com"]
[Source "ChessBase"]
[SourceQuality "1"]
[TimeControl "5400+30"]

1. e4 {[%emt 0:00:00]} c5 {[%emt 0:00:37]} 2. Nf3 {[%emt 0:00:11]} e6 {[%emt 0:00:21]} 3. d4 {[%emt 0:00:52]} cxd4 {[%emt 0:00:05]} 4. Nxd4 {[%emt 0:00:05]} Nc6 {[%emt 0:00:05]} 5. Nc3 {[%emt 0:00:52]} Qc7 {[%emt 0:00:06]} 6. Be3 {[%emt 0:00:44]} a6 {[%emt 0:00:08]} 7. Bd3 {[%emt 0:00:49]} Nf6 {[%emt 0:00:14]} 8. O-O {[%emt 0:01:07]} Ne5 {[%emt 0:00:06]} 9. h3 {[%emt 0:01:24]} Bc5 {[%emt 0:01:12]} 10. Kh1 {[%emt 0:08:16]} b5 {[%emt 0:02:26]} 11. f4 {[%emt 0:18:33]} Nxd3 {[%emt 0:00:25]} 12. cxd3 {[%emt 0:00:13]} d6 {[%emt 0:09:32]} 13. Rc1 {[%emt 0:02:32]} Qa7 {[%emt 0:11:42]} 14. Nce2 {[%emt 0:00:41]} Bb7 {[%emt 0:08:16]} 15. b4 {[%emt 0:03:13]} Bb6 {[%emt 0:00:09]} 16. a4 {[%emt 0:04:40]} e5 {[%emt 0:07:17]} 17. fxe5 {[%emt 0:02:09]} dxe5 {[%emt 0:00:06]} 18. Nf5 {[%emt 0:03:04]} Bxe3 {[%emt 0:00:11]} 19. Rc7 {[%emt 0:01:43]} O-O {[%emt 0:01:08]} 20. Nxe3 {[%emt 0:02:32]} Qxe3 {[%emt 0:00:10]} 21. Rxb7 {[%emt 0:00:09]} Rad8 {[%emt 0:00:07]} 22. Qe1 {[%emt 0:09:28]} Rxd3 {[%emt 0:12:05]} 23. Nc1 {[%emt 0:03:43]} Qxe1 {[%emt 0:03:17]} 24. Rxe1 {[%emt 0:00:01]} Rd4 {[%emt 0:01:50]} 25. axb5 {[%emt 0:00:18]} Rxb4 {[%emt 0:02:23]} 26. bxa6 {[%emt 0:00:22]} Rxb7 {[%emt 0:00:04]} 27. axb7 {[%emt 0:00:02]} Rb8 {[%emt 0:00:08]} 28. Nd3 {[%emt 0:01:37]} Rxb7 {[%emt 0:00:06]} 29. Nxe5 {[%emt 0:01:02]} Re7 {[%emt 0:00:06]} 30. Nc6 {[%emt 0:03:51]} Rxe4 {[%emt 0:00:13]} 31. Rxe4 {[%emt 0:00:44]} Nxe4 {[%emt 0:00:05]} 32. Kg1 {[%emt 0:01:04]} g6 {[%emt 0:01:40]} 33. Kf1 {[%emt 0:02:49]} f5 {[%emt 0:00:05]} 34. Nd4 {[%emt 0:00:42]} Kf7 {[%emt 0:00:29]} 35. Ke2 {[%emt 0:01:26]} Kf6 {[%emt 0:02:44]} 36. Ke3 {[%emt 0:01:38]} Ng5 {[%emt 0:00:46]} 37. Nc6 {[%emt 0:02:26]} Ne6 {[%emt 0:03:16]} 38. h4 {[%emt 0:06:56]} h6 {[%emt 0:01:23]} 39. Kf3 {[%emt 0:02:00]} g5 {[%emt 0:00:49]} 40. hxg5+ {[%emt 0:00:05]} hxg5 {[%emt 0:00:05]} 41. Nb4 {[%emt 0:03:08]} Ke5 {[%emt 0:03:53]} 42. Nc6+ {[%emt 0:00:09]} Kd6 {[%emt 0:00:12]} 43. Nb4 {[%emt 0:00:34]} Kc5 {[%emt 0:00:39]} 44. Nd3+ {[%emt 0:00:42]} Kd4 {[%emt 0:00:18]} 45. Nf2 {[%emt 0:00:50]} Kc4 {[%emt 0:05:45]} 46. g4 {[%emt 0:02:55]} Nd4+ {[%emt 0:02:15]} 47. Ke3 {[%emt 0:00:08]} f4+ {[%emt 0:00:56]} 48. Ke4 {[%emt 0:00:05]} f3 {[%emt 0:00:15]} 49. Ke3 {[%emt 0:00:12]} Kd5 {[%emt 0:00:33]} 1/2-1/2

[Event "6th Uppsala Young Champions 2019"]
[Site "Uppsala"]
[Date "2019.10.29"]
[Round "7.10"]
[White "Rasti, Arvin"]
[Black "Trost, Edvin"]
[Result "1/2-1/2"]
[ECO "B43"]
[WhiteElo "2179"]
[BlackElo "1982"]
[Annotator "ChessBase"]
[PlyCount "76"]
[EventDate "2019.10.25"]
[EventType "swiss"]
[EventCountry "SWE"]
[SourceTitle "playchess.com"]
[Source "ChessBase"]
[SourceQuality "1"]
[TimeControl "5400+30"]

1. e4 {[%emt 0:00:00]} c5 {[%emt 0:01:39]} 2. Nf3 {[%emt 0:00:19]} e6 {[%emt 0:00:38]} 3. d4 {[%emt 0:00:20]} cxd4 {[%emt 0:00:09]} 4. Nxd4 {[%emt 0:00:02]} a6 {[%emt 0:00:06]} 5. Nc3 {[%emt 0:00:11]} Qc7 {[%emt 0:00:10]} 6. g3 {[%emt 0:00:38]} b5 {[%emt 0:01:49]} 7. Bg2 {[%emt 0:00:27]} Bb7 {[%emt 0:01:50]} 8. a3 {[%emt 0:02:29]} d6 {[%emt 0:02:09]} 9. O-O {[%emt 0:01:17]} Nf6 {[%emt 0:01:23]} 10. Be3 {[%emt 0:00:55]} Be7 {[%emt 0:00:38]} 11. f4 {[%emt 0:03:09]} O-O {[%emt 0:00:24]} 12. g4 {[%emt 0:01:53]} d5 {[%emt 0:07:40]} 13. exd5 {[%emt 0:08:20]} Nxd5 {[%emt 0:01:53]} 14. Nxd5 {[%emt 0:00:32]} Bxd5 {[%emt 0:00:33]} 15. Bxd5 {[%emt 0:00:29]} exd5 {[%emt 0:00:01]} 16. Qd3 {[%emt 0:06:50]} Nc6 {[%emt 0:04:30]} 17. Rad1 {[%emt 0:19:10]} Rfe8 {[%emt 0:13:07]} 18. Nxc6 {[%emt 0:06:15]} Qxc6 {[%emt 0:00:03]} 19. c3 {[%emt 0:00:24]} Bc5 {[%emt 0:16:40]} 20. Bxc5 {[%emt 0:00:42]} Qxc5+ {[%emt 0:00:01]} 21. Qd4 {[%emt 0:00:38]} Qxd4+ {[%emt 0:01:43]} 22. Rxd4 {[%emt 0:00:09]} Re2 {[%emt 0:02:57]} 23. Rf2 {[%emt 0:02:03]} Rxf2 {[%emt 0:00:58]} 24. Kxf2 {[%emt 0:00:01]} Rd8 {[%emt 0:00:08]} 25. a4 {[%emt 0:01:55]} Rb8 {[%emt 0:01:54]} 26. Rb4 {[%emt 0:06:11]} Kf8 {[%emt 0:01:29]} 27. axb5 {[%emt 0:00:53]} Rxb5 {[%emt 0:00:47]} 28. Rxb5 {[%emt 0:00:21]} axb5 {[%emt 0:00:00]} 29. Ke3 {[%emt 0:00:19]} Ke7 {[%emt 0:00:10]} 30. Kd4 {[%emt 0:01:19]} Kd6 {[%emt 0:00:06]} 31. h3 {[%emt 0:05:07]} f6 {[%emt 0:00:12]} 32. g5 {[%emt 0:02:33]} h6 {[%emt 0:00:26]} 33. gxh6 {[%emt 0:07:39]} gxh6 {[%emt 0:00:03]} 34. b3 {[%emt 0:03:07]} Kc6 {[%emt 0:00:31]} 35. Ke3 {[%emt 0:03:15]} Kc5 {[%emt 0:01:07]} 36. Kd3 {[%emt 0:00:09]} Kd6 {[%emt 0:00:59]} 37. Kd4 {[%emt 0:00:06]} Kc6 {[%emt 0:00:06]} 38. h4 {[%emt 0:05:27]} h5 {[%emt 0:00:21]} 1/2-1/2

[Event "6th Uppsala Young Champions 2019"]
[Site "Uppsala"]
[Date "2019.10.29"]
[Round "7.11"]
[White "Vainerchuk, Barys"]
[Black "Carlsson, Ludvig"]
[Result "0-1"]
[ECO "C67"]
[WhiteElo "2136"]
[BlackElo "2066"]
[Annotator "ChessBase"]
[PlyCount "68"]
[EventDate "2019.10.25"]
[EventType "swiss"]
[EventCountry "SWE"]
[SourceTitle "playchess.com"]
[Source "ChessBase"]
[SourceQuality "1"]
[TimeControl "5400+30"]

1. e4 {[%emt 1:30:30]} e5 {[%emt 1:30:30]} 2. Nf3 {[%emt 0:00:30]} Nc6 {[%emt 0:00:30]} 3. Bb5 {[%emt 0:00:30]} Nf6 {[%emt 0:00:30]} 4. O-O {[%emt 0:00:30]} Nxe4 {[%emt 0:00:30]} 5. d4 {[%emt 0:00:30]} Nd6 {[%emt 0:00:30]} 6. dxe5 {[%emt 0:00:30]} Nxb5 {[%emt 0:00:30]} 7. a4 {[%emt 0:00:30]} Nbd4 {[%emt 0:00:30]} 8. Nxd4 {[%emt 0:00:30]} Nxd4 {[%emt 0:00:30]} 9. Qxd4 {[%emt 0:00:30]} d6 {[%emt 0:00:30]} 10. Re1 {[%emt 0:00:30]} d5 {[%emt 0:00:30]} 11. e6 {[%emt 0:00:30]} Bxe6 {[%emt 0:00:30]} 12. Nc3 {[%emt 0:00:30]} c6 {[%emt 0:00:30]} 13. Bf4 {[%emt 0:00:30]} Qb6 {[%emt 0:00:30]} 14. Qd2 {[%emt 0:00:30]} Be7 {[%emt 0:00:30]} 15. a5 {[%emt 0:00:30]} Qd8 {[%emt 0:00:30]} 16. a6 {[%emt 0:00:30]} b6 {[%emt 0:00:30]} 17. Ne2 {[%emt 0:00:30]} c5 {[%emt 0:00:30]} 18. Be5 {[%emt 0:00:30]} O-O {[%emt 0:00:30]} 19. Nf4 {[%emt 0:00:30]} Bg5 {[%emt 0:00:30]} 20. Qd3 {[%emt 0:00:30]} Re8 {[%emt 0:00:30]} 21. Rad1 {[%emt 0:00:30]} Bxf4 {[%emt 0:00:30]} 22. Bxf4 {[%emt 0:00:30]} Qf6 {[%emt 0:00:30]} 23. Be5 {[%emt 0:00:30]} Qg6 {[%emt 0:00:30]} 24. Qd2 {[%emt 0:00:30]} d4 {[%emt 0:00:30]} 25. Bg3 {[%emt 0:00:30]} h5 {[%emt 0:00:30]} 26. b4 {[%emt 0:00:30]} Bd5 {[%emt 0:00:30]} 27. h4 {[%emt 0:00:30]} Re4 {[%emt 0:00:30]} 28. Rxe4 {[%emt 0:00:30]} Bxe4 {[%emt 0:00:30]} 29. Re1 {[%emt 0:00:30]} Rc8 {[%emt 0:00:30]} 30. bxc5 {[%emt 0:00:30]} bxc5 {[%emt 0:00:30]} 31. c3 {[%emt 0:00:30]} d3 {[%emt 0:00:30]} 32. c4 {[%emt 0:00:30]} Rd8 {[%emt 0:00:30]} 33. Kh2 {[%emt 0:00:30]} Rd4 {[%emt 0:00:30]} 34. Bb8 {[%emt 0:00:30]} Qxg2# {[%emt 0:00:30]} 0-1

[Event "6th Uppsala Young Champions 2019"]
[Site "Uppsala"]
[Date "2019.10.29"]
[Round "7.12"]
[White "Soderstrom, Adrian"]
[Black "Nguyen, Gabriel"]
[Result "1/2-1/2"]
[ECO "D45"]
[WhiteElo "1960"]
[BlackElo "2071"]
[Annotator "NA"]
[PlyCount "59"]
[EventDate "2019.10.25"]
[EventType "swiss"]
[EventCountry "SWE"]
[SourceTitle "playchess.com"]
[Source "ChessBase"]
[SourceQuality "1"]
[TimeControl "5400+30"]

1. d4 {[%emt 0:00:00]} Nf6 {[%emt 0:00:32]} 2. c4 {[%emt 0:00:00]} e6 {[%emt 0:04:20]} 3. Nf3 {[%emt 0:00:00]} d5 {[%emt 0:00:07]} 4. Nc3 {[%emt 0:00:57]} c6 {[%emt 0:01:09]} 5. e3 {[%emt 0:00:06]} Nbd7 {[%emt 0:00:12]} 6. Qc2 {[%emt 0:00:12]} Bd6 {[%emt 0:00:07]} 7. b3 {[%emt 0:00:05]} O-O {[%emt 0:00:52]} 8. Bb2 {[%emt 0:00:20]} e5 {[%emt 0:02:31]} 9. cxd5 {[%emt 0:01:06]} cxd5 {[%emt 0:01:38]} 10. dxe5 {[%emt 0:00:13]} Nxe5 {[%emt 0:00:15]} 11. Be2 {[%emt 0:00:46]} Bg4 {[%emt 0:08:38]} 12. Nxe5 {[%emt 0:04:59]} Bxe5 {[%emt 0:01:14]} 13. Bxg4 {[%emt 0:18:48]} Nxg4 $11 {[%emt 0:00:37]} 14. h3 {[%emt 0:00:35]} Nf6 {[%emt 0:00:55]} 15. O-O {[%emt 0:02:09]} Rc8 {[%emt 0:10:25]} 16. Qd3 {[%emt 0:12:31]} Qa5 {[%emt 0:23:50]} 17. Rac1 {[%emt 0:00:28]} Rfd8 {[%emt 0:02:00]} 18. Rfd1 {[%emt 0:01:36]} h6 {[%emt 0:06:20]} 19. Qd2 {[%emt 0:11:15]} Rc6 {[%emt 0:10:05]} 20. Ne4 {[%emt 0:06:58]} Qxd2 {[%emt 0:02:31]} 21. Nxf6+ {[%emt 0:00:07]} Bxf6 {[%emt 0:00:49]} 22. Rxd2 {[%emt 0:00:06]} Rxc1+ {[%emt 0:01:40]} 23. Bxc1 {[%emt 0:00:01]} d4 {[%emt 0:00:41]} 24. exd4 {[%emt 0:01:32]} Rxd4 {[%emt 0:00:15]} 25. Rc2 {[%emt 0:02:05]} a6 {[%emt 0:01:29]} 26. g3 {[%emt 0:00:13]} Rd7 {[%emt 0:02:16]} 27. Kg2 {[%emt 0:00:21]} h5 {[%emt 0:00:47]} 28. h4 {[%emt 0:00:18]} g6 {[%emt 0:00:04]} 29. Rc8+ {[%emt 0:00:52]} Kg7 {[%emt 0:00:12]} 30. Rc2 {[%emt 0:00:38]} 1/2-1/2

[Event "6th Uppsala Young Champions 2019"]
[Site "Uppsala"]
[Date "2019.10.29"]
[Round "7.13"]
[White "Ostlund, Joar"]
[Black "Muntean, Victor"]
[Result "0-1"]
[ECO "C47"]
[WhiteElo "1955"]
[BlackElo "2020"]
[Annotator "NA"]
[PlyCount "72"]
[EventDate "2019.10.25"]
[EventType "swiss"]
[EventCountry "SWE"]
[SourceTitle "playchess.com"]
[Source "ChessBase"]
[SourceQuality "1"]
[TimeControl "5400+30"]

1. e4 {[%emt 0:00:00]} e5 {[%emt 0:00:00]} 2. Nf3 {[%emt 0:00:00]} Nc6 {[%emt 0:00:00]} 3. Nc3 {[%emt 0:00:00]} Nf6 {[%emt 0:00:13]} 4. d4 {[%emt 0:00:14]} exd4 {[%emt 0:00:18]} 5. Nxd4 {[%emt 0:00:09]} Nxe4 {[%emt 0:00:11]} 6. Nxe4 {[%emt 0:00:11]} Qe7 {[%emt 0:00:07]} 7. f3 {[%emt 0:00:21]} d5 {[%emt 0:00:06]} 8. Bb5 $14 {[%emt 0:00:33]} Bd7 {[%emt 0:00:09]} 9. Bxc6 {[%emt 0:00:33]} bxc6 {[%emt 0:00:16]} 10. O-O {[%emt 0:00:43]} dxe4 {[%emt 0:00:17]} 11. fxe4 {[%emt 0:01:58]} O-O-O {[%emt 0:05:06]} 12. Qd3 {[%emt 0:08:40]} Qb4 {[%emt 0:01:09]} 13. c3 {[%emt 0:22:56]} Qb7 {[%emt 0:00:50]} 14. Rxf7 {[%emt 0:13:50]} c5 {[%emt 0:00:51]} 15. Bg5 {[%emt 0:00:42]} Be6 {[%emt 0:05:09]} 16. Bxd8 {[%emt 0:07:03]} Bxf7 {[%emt 0:00:11]} 17. Ne2 {[%emt 0:01:54]} c4 {[%emt 0:02:10]} 18. Qh3+ {[%emt 0:00:29]} Kxd8 {[%emt 0:00:51]} 19. Rd1+ {[%emt 0:00:16]} Bd6 {[%emt 0:00:06]} 20. e5 {[%emt 0:00:25]} Qb6+ {[%emt 0:02:05]} 21. Kh1 {[%emt 0:01:24]} Re8 {[%emt 0:04:08]} 22. exd6 {[%emt 0:00:56]} cxd6 {[%emt 0:00:08]} 23. Qf3 {[%emt 0:07:17]} Bg6 {[%emt 0:14:24]} 24. Nd4 {[%emt 0:00:51]} Be4 {[%emt 0:01:28]} 25. Qf7 {[%emt 0:01:14]} Re7 {[%emt 0:11:27]} 26. Qg8+ {[%emt 0:29:32]} Kd7 {[%emt 0:01:04]} 27. Qxc4 {[%emt 0:00:07]} Qxb2 {[%emt 0:00:49]} 28. Qb5+ {[%emt 0:00:28]} Qxb5 {[%emt 0:00:07]} 29. Nxb5 {[%emt 0:00:05]} Kc6 {[%emt 0:00:35]} 30. a4 {[%emt 0:01:14]} d5 {[%emt 0:02:23]} 31. Kg1 {[%emt 0:00:41]} Kc5 {[%emt 0:00:50]} 32. Rd4 {[%emt 0:00:26]} a6 {[%emt 0:00:56]} 33. Na3 {[%emt 0:00:15]} Rb7 {[%emt 0:00:11]} 34. Rd2 {[%emt 0:00:58]} Rb3 {[%emt 0:00:14]} 35. Ra2 {[%emt 0:00:30]} Rxc3 {[%emt 0:00:23]} 36. Kf2 {[%emt 0:00:32]} Kb4 {[%emt 0:00:13]} 0-1

[Event "6th Uppsala Young Champions 2019"]
[Site "Uppsala"]
[Date "2019.10.29"]
[Round "7.14"]
[White "Dingertz, Erik"]
[Black "Mitra, Akash"]
[Result "1-0"]
[ECO "A21"]
[WhiteElo "1908"]
[BlackElo "1936"]
[Annotator "NA"]
[PlyCount "53"]
[EventDate "2019.10.25"]
[EventType "swiss"]
[EventCountry "SWE"]
[SourceTitle "playchess.com"]
[Source "ChessBase"]
[SourceQuality "1"]
[TimeControl "5400+30"]

1. c4 {[%emt 1:30:30]} e5 {[%emt 1:30:30]} 2. Nc3 {[%emt 0:00:30]} Bb4 {[%emt 0:00:30]} 3. g3 {[%emt 0:00:30]} d6 {[%emt 0:00:30]} 4. Bg2 {[%emt 0:00:30]} f5 {[%emt 0:00:30]} 5. d3 {[%emt 0:00:30]} Bxc3+ {[%emt 0:00:30]} 6. bxc3 {[%emt 0:00:30]} Nf6 {[%emt 0:00:30]} 7. Rb1 {[%emt 0:00:30]} c6 {[%emt 0:00:30]} 8. e3 {[%emt 0:00:30]} O-O $11 {[%emt 0:00:30]} 9. Ne2 {[%emt 0:00:30]} Nbd7 {[%emt 0:00:30]} 10. O-O {[%emt 0:00:30]} Nb6 {[%emt 0:00:30]} 11. Ba3 {[%emt 0:00:30]} Qe7 {[%emt 0:00:30]} 12. c5 {[%emt 0:00:30]} dxc5 {[%emt 0:00:30]} 13. d4 {[%emt 0:00:30]} Nfd7 {[%emt 0:00:30]} 14. Qb3+ {[%emt 0:00:30]} Kh8 {[%emt 0:00:30]} 15. Rfd1 {[%emt 0:00:30]} Rf6 {[%emt 0:00:30]} 16. Rd2 {[%emt 0:00:30]} g5 {[%emt 0:00:30]} 17. Rbd1 {[%emt 0:00:30]} f4 {[%emt 0:00:30]} 18. dxc5 {[%emt 0:00:30]} f3 {[%emt 0:00:30]} 19. cxb6 {[%emt 0:00:30]} Qe8 {[%emt 0:00:30]} 20. Bxf3 {[%emt 0:00:30]} Rxf3 {[%emt 0:00:30]} 21. Kg2 {[%emt 0:00:30]} Qh5 {[%emt 0:00:30]} 22. Rxd7 {[%emt 0:00:30]} Bxd7 {[%emt 0:00:30]} 23. Rxd7 {[%emt 0:00:30]} Rf6 {[%emt 0:00:30]} 24. Ng1 {[%emt 0:00:30]} Qg4 {[%emt 0:00:30]} 25. Rxb7 {[%emt 0:00:30]} Rd8 {[%emt 0:00:30]} 26. Qc2 {[%emt 0:00:30]} Rd7 {[%emt 0:00:30]} 27. bxa7 {[%emt 0:00:30]} 1-0

[Event "6th Uppsala Young Champions 2019"]
[Site "Uppsala"]
[Date "2019.10.29"]
[Round "7.15"]
[White "Ostensson, Julia"]
[Black "Grahn, Vidar"]
[Result "0-1"]
[ECO "B73"]
[WhiteElo "1483"]
[BlackElo "1926"]
[Annotator "NA"]
[PlyCount "88"]
[EventDate "2019.10.25"]
[EventType "swiss"]
[EventCountry "SWE"]
[SourceTitle "playchess.com"]
[Source "ChessBase"]
[SourceQuality "1"]
[TimeControl "5400+30"]

1. e4 {[%emt 1:30:30]} c5 {[%emt 1:30:30]} 2. Nf3 {[%emt 0:00:30]} Nc6 {[%emt 0:00:30]} 3. d4 {[%emt 0:00:30]} cxd4 {[%emt 0:00:30]} 4. Nxd4 {[%emt 0:00:30]} g6 {[%emt 0:00:30]} 5. Nc3 {[%emt 0:00:30]} Bg7 {[%emt 0:00:30]} 6. Be3 {[%emt 0:00:30]} Nf6 {[%emt 0:00:30]} 7. Be2 {[%emt 0:00:30]} O-O {[%emt 0:00:30]} 8. O-O {[%emt 0:00:30]} d6 $11 {[%emt 0:00:30]} 9. Qd2 {[%emt 0:00:30]} Qa5 {[%emt 0:00:30]} 10. Nb3 {[%emt 0:00:30]} Qd8 {[%emt 0:00:30]} 11. f4 {[%emt 0:00:30]} a6 {[%emt 0:00:30]} 12. Bf3 {[%emt 0:00:30]} Bg4 {[%emt 0:00:30]} 13. f5 {[%emt 0:00:30]} Bxf3 {[%emt 0:00:30]} 14. Rxf3 {[%emt 0:00:30]} Ne5 {[%emt 0:00:30]} 15. Rh3 {[%emt 0:00:30]} Nc4 {[%emt 0:00:30]} 16. Qc1 {[%emt 0:00:30]} Nxe3 {[%emt 0:00:30]} 17. Qxe3 {[%emt 0:00:30]} Ng4 {[%emt 0:00:30]} 18. Qf4 {[%emt 0:00:30]} Qb6+ {[%emt 0:00:30]} 19. Kf1 {[%emt 0:00:30]} h5 {[%emt 0:00:30]} 20. Nd5 {[%emt 0:00:30]} Qd8 {[%emt 0:00:30]} 21. Qg5 {[%emt 0:00:30]} e6 {[%emt 0:00:30]} 22. Ne7+ {[%emt 0:00:30]} Kh7 {[%emt 0:00:30]} 23. Qxg4 {[%emt 0:00:30]} Qxe7 {[%emt 0:00:30]} 24. Qf4 {[%emt 0:00:30]} Bh6 {[%emt 0:00:30]} 25. f6 {[%emt 0:00:30]} Bxf4 {[%emt 0:00:30]} 26. fxe7 {[%emt 0:00:30]} Rfe8 {[%emt 0:00:30]} 27. Rf3 {[%emt 0:00:30]} Be5 {[%emt 0:00:30]} 28. Rxf7+ {[%emt 0:00:30]} Kg8 {[%emt 0:00:30]} 29. Rf3 {[%emt 0:00:30]} Rxe7 {[%emt 0:00:30]} 30. c3 {[%emt 0:00:30]} Bxh2 {[%emt 0:00:30]} 31. g3 {[%emt 0:00:30]} h4 {[%emt 0:00:30]} 32. gxh4 {[%emt 0:00:30]} Rh7 {[%emt 0:00:30]} 33. Rh3 {[%emt 0:00:30]} Be5 {[%emt 0:00:30]} 34. Na5 {[%emt 0:00:30]} b5 {[%emt 0:00:30]} 35. Kg2 {[%emt 0:00:30]} Rf8 {[%emt 0:00:30]} 36. Nc6 {[%emt 0:00:30]} Rf4 {[%emt 0:00:30]} 37. Nxe5 {[%emt 0:00:30]} dxe5 {[%emt 0:00:30]} 38. Rd1 {[%emt 0:00:30]} Rxe4 {[%emt 0:00:30]} 39. Rg3 {[%emt 0:00:30]} Rhxh4 {[%emt 0:00:30]} 40. Rd8+ {[%emt 0:00:30]} Kf7 {[%emt 0:00:30]} 41. Rf3+ {[%emt 0:00:30]} Ke7 {[%emt 0:00:30]} 42. Rg8 {[%emt 0:00:30]} Re2+ {[%emt 0:00:30]} 43. Kg3 {[%emt 0:00:30]} Rhh2 {[%emt 0:00:30]} 44. Rxg6 {[%emt 0:00:30]} Reg2# {[%emt 0:00:30]} 0-1